bitfinex/quotes_SOLUSD_20250525
["timestamp","ask_amount","ask_price","bid_price","bid_amount"]
[1748140412013,13.41047381,171.98,171.93,13.41047381]
[1748140412223,1.5247,172.02,171.94,34.82]
[1748140412416,13.41047381,171.98,171.94,34.82]
[1748140413213,13.41047381,171.97,171.94,34.82]
[1748140415141,13.41047381,171.98,171.94,34.82]
[1748140415466,13.41047381,172.03,171.97,13.41047381]
[1748140415746,13.41047381,172.03,171.98,13.41047381]
[1748140415925,13.41047381,172.03,171.99,13.41047381]
[1748140416129,13.41047381,172.03,172.0,34.82]
[1748140417756,13.41047381,172.03,172.01,255.92]
[1748140418858,2.87538914,172.08,172.01,255.92]
[1748140419141,13.41047381,172.03,172.01,38.68]
[1748140419346,13.41047381,172.03,172.0,34.82]
[1748140422750,13.41047381,172.02,171.96,1.5758]
[1748140422970,13.41047381,172.0,171.97,34.82]
[1748140423247,13.41047381,172.01,171.97,34.82]
[1748140423545,13.41047381,172.01,171.96,97.48627381]
[1748140423848,13.41047381,172.02,171.97,48.21047381]
[1748140424253,13.41047381,172.01,171.97,34.8]
[1748140424744,0.14216157,172.07,171.97,34.8]
[1748140425051,13.41047381,172.01,171.97,34.8]
[1748140426948,0.14216157,172.07,171.98,13.41047381]
[1748140426949,13.41047381,172.03,171.98,13.41047381]
[1748140427448,0.14216157,172.07,171.99,13.41047381]
[1748140427632,13.41047381,172.03,171.99,269.25047381]
[1748140427818,13.41047381,172.03,171.99,255.84]
[1748140428021,13.41047381,172.02,171.99,255.84]
[1748140428251,26.0,172.09,172.01,13.41047381]
[1748140428441,13.41047381,172.05,172.0,13.41047381]
[1748140428864,13.41047381,172.04,171.99,134.55047381]
[1748140429360,13.41047381,172.03,171.99,121.14]
[1748140429522,13.41047381,172.02,171.99,82.5]
[1748140429725,0.14216157,172.07,171.99,82.5]
[1748140429927,0.14216157,172.04,172.0,34.8]
[1748140430150,13.41047381,172.01,171.99,82.5]
[1748140430455,0.14216157,172.04,171.95,6.1795]
[1748140430456,13.41047381,172.0,171.95,6.1795]
[1748140430627,0.14216157,172.04,171.96,34.8]
[1748140430826,0.14216157,172.06,171.97,13.41047381]
[1748140431337,13.41047381,172.01,171.96,48.21047381]
[1748140431536,13.41047381,172.0,171.96,34.8]
[1748140431956,13.41047381,172.01,171.96,48.21047381]
[1748140432264,0.14216157,172.06,171.96,48.21047381]
[1748140432433,13.41047381,172.01,171.96,48.21047381]
[1748140434156,13.41047381,172.02,171.97,13.41047381]
[1748140434955,13.41047381,172.01,171.96,48.21047381]
[1748140436757,13.41047381,172.01,171.96,130.71047381]
[1748140437466,13.41047381,172.0,171.97,217.18]
[1748140437669,13.41047381,172.0,171.97,255.82]
[1748140438336,0.14216157,172.06,171.98,13.41047381]
[1748140438538,13.41047381,172.02,171.98,13.41047381]
[1748140438839,13.41047381,172.02,171.97,13.41047381]
[1748140440762,13.41047381,172.01,171.96,130.71047381]
[1748140442164,13.41047381,172.0,171.96,117.3]
[1748140442347,0.14216157,172.06,171.96,82.5]
[1748140442550,13.41047381,172.0,171.97,34.8]
[1748140443063,26.0,171.95,171.83,6.6434]
[1748140443237,26.0,171.95,171.84,34.8]
[1748140443238,13.41047381,171.89,171.84,34.8]
[1748140444266,13.41047381,171.93,171.88,13.41047381]
[1748140444461,13.41047381,171.93,171.89,34.8]
[1748140445761,0.14216157,171.97,171.89,34.8]
[1748140446065,13.41047381,171.93,171.89,34.8]
[1748140447477,13.41047381,171.93,171.9,255.86]
[1748140448680,13.41047381,171.92,171.9,255.86]
[1748140449479,13.41047381,171.93,171.9,255.86]
[1748140449775,13.41047381,171.93,171.9,38.64]
[1748140451573,13.41047381,171.93,171.89,34.8]
[1748140451769,26.0,171.99,171.89,34.8]
[1748140452079,13.41047381,171.94,171.89,130.71047381]
[1748140452275,1.5613,172.02,171.92,13.41047381]
[1748140452590,13.41047381,171.98,171.93,13.41047381]
[1748140452755,13.41047381,171.98,171.94,34.82]
[1748140452957,1.5613,172.02,171.94,48.23047381]
[1748140453184,0.14216157,172.04,171.95,13.41047381]
[1748140453502,13.41047381,171.99,171.95,13.41047381]
[1748140454502,13.41047381,171.99,171.94,48.23047381]
[1748140456285,13.41047381,172.0,171.95,13.41047381]
[1748140456781,13.41047381,171.99,171.94,48.23047381]
[1748140457187,26.0,172.03,171.94,48.23047381]
[1748140457612,13.41047381,171.99,171.95,255.86]
[1748140457908,13.41047381,171.99,171.95,38.62]
[1748140458112,1.534,172.06,171.94,34.82]
[1748140458326,13.41047381,172.04,171.99,13.41047381]
[1748140458491,13.41047381,172.03,172.0,34.82]
[1748140459212,1.5781,172.1,172.0,48.23047381]
[1748140459513,13.41047381,172.05,172.0,48.23047381]
[1748140460402,13.41047381,172.04,172.0,34.82]
[1748140460594,27.5781,172.1,172.0,34.82]
[1748140460816,13.41047381,172.04,172.0,34.82]
[1748140461833,13.41047381,172.05,172.0,48.23047381]
[1748140462725,30.45522881,172.1,172.0,48.23047381]
[1748140462928,13.41047381,172.06,172.01,13.41047381]
[1748140463236,13.41047381,172.05,172.0,130.73047381]
[1748140464328,27.5781,172.1,172.0,117.32]
[1748140464329,13.41047381,172.04,172.0,117.32]
[1748140464512,13.41047381,172.06,172.01,13.41047381]
[1748140465015,1.5781,172.1,172.01,13.41047381]
[1748140465331,1.5781,172.1,172.0,117.32]
[1748140465332,13.41047381,172.07,172.02,13.41047381]
[1748140465502,13.41047381,172.08,172.03,13.41047381]
[1748140466629,13.41047381,172.08,172.0,117.32]
[1748140466812,13.41047381,172.06,172.01,13.41047381]
[1748140467011,13.41047381,172.06,172.01,95.91047381]
[1748140467531,28.83272841,172.12,172.03,13.41047381]
[1748140467709,13.41047381,172.08,172.03,13.41047381]
[1748140468728,13.41047381,172.07,172.03,13.41047381]
[1748140470404,13.41047381,172.07,172.02,134.53047381]
[1748140470606,13.41047381,172.07,172.02,95.91047381]
[1748140471143,13.41047381,172.07,172.02,82.5]
[1748140471309,13.41047381,172.07,172.02,95.91047381]
[1748140471835,13.41047381,172.06,172.02,82.5]
[1748140472411,13.41047381,172.09,172.02,82.5]
[1748140472613,13.41047381,172.09,172.04,13.41047381]
[1748140472918,13.41047381,172.08,172.05,34.8]
[1748140473125,13.41047381,172.07,172.05,34.8]
[1748140473828,0.14216157,172.13,172.05,34.8]
[1748140474027,13.41047381,172.08,172.05,34.8]
[1748140474237,13.41047381,172.07,172.05,34.8]
[1748140475216,13.41047381,172.08,172.05,34.8]
[1748140475606,13.41047381,172.07,172.05,34.8]
[1748140476034,0.14216157,172.13,172.05,34.8]
[1748140476219,13.41047381,172.08,172.05,34.8]
[1748140476732,13.41047381,172.06,172.05,34.8]
[1748140477637,13.41047381,172.06,172.05,290.52]
[1748140478022,13.41047381,172.07,172.05,290.52]
[1748140478216,13.41047381,172.06,172.05,255.72]
[1748140478546,13.41047381,172.06,172.05,290.52]
[1748140479931,13.41047381,172.06,172.05,38.6]
[1748140480137,13.41047381,172.06,172.05,73.4]
[1748140480946,2.95079414,172.13,172.05,34.8]
[1748140481150,13.41047381,172.08,172.05,34.8]
[1748140484038,26.0,172.12,172.0,82.5]
[1748140484039,13.41047381,172.06,172.0,82.5]
[1748140484225,13.41047381,172.05,172.01,34.8]
[1748140485638,13.41047381,172.07,172.02,13.41047381]
[1748140486030,13.41047381,172.06,172.01,48.21047381]
[1748140486236,13.41047381,172.06,172.01,34.8]
[1748140487359,13.41047381,172.05,172.01,34.8]
[1748140487557,13.41047381,172.05,172.02,256.7]
[1748140487767,0.14216157,172.11,172.02,256.7]
[1748140487935,13.41047381,172.05,172.02,256.7]
[1748140488135,13.41047381,172.05,172.02,39.58]
[1748140489036,13.41047381,172.06,172.02,39.58]
[1748140489425,13.41047381,172.05,172.02,39.58]
[1748140489631,13.41047381,172.05,172.01,117.3]
[1748140489932,13.41047381,172.02,171.98,82.5]
[1748140490148,13.41047381,171.99,171.94,88.9336]
[1748140490338,13.41047381,171.96,171.95,34.8]
[1748140490534,18.79181043,172.05,171.95,34.8]
[1748140490733,26.0,172.06,171.95,48.21047381]
[1748140491051,26.0,172.06,171.97,13.41047381]
[1748140491232,13.41047381,172.02,171.98,13.41047381]
[1748140491733,13.41047381,172.02,171.97,13.41047381]
[1748140494762,1.5104,172.07,171.99,13.41047381]
[1748140494958,13.41047381,172.05,172.0,13.41047381]
[1748140495156,13.41047381,172.06,172.01,48.21047381]
[1748140495354,1.67466157,172.11,172.01,48.21047381]
[1748140495545,13.41047381,172.06,172.01,48.21047381]
[1748140495738,1.67466157,172.11,172.01,48.21047381]
[1748140495739,1.67466157,172.11,172.01,34.8]
[1748140495945,13.41047381,172.06,172.01,48.21047381]
[1748140496358,1.67466157,172.11,172.01,48.21047381]
[1748140496571,13.41047381,172.06,172.01,130.71047381]
[1748140497463,13.41047381,172.04,172.02,256.72]
[1748140497876,13.41047381,172.03,172.02,256.72]
[1748140498459,13.41047381,172.03,172.02,34.8]
[1748140501566,26.0,172.03,172.02,34.8]
[1748140501873,13.41047381,172.03,172.02,34.8]
[1748140502076,1.538,172.04,172.02,34.8]
[1748140502248,13.41047381,172.03,172.02,34.8]
[1748140503277,1.538,172.04,172.02,34.8]
[1748140503473,13.41047381,172.03,172.02,34.8]
[1748140506786,0.14216157,172.01,171.94,6.4336]
[1748140506977,26.0,172.03,171.95,34.8]
[1748140507168,13.41047381,171.98,171.95,34.8]
[1748140507470,13.41047381,171.98,171.96,256.74]
[1748140508576,13.41047381,171.99,171.96,39.58]
[1748140508881,13.41047381,171.99,171.95,34.8]
[1748140509182,13.41047381,171.98,171.95,34.8]
[1748140509491,13.41047381,171.97,171.96,34.8]
[1748140510056,18.79181043,172.04,171.96,34.8]
[1748140510255,13.41047381,171.98,171.96,34.8]
[1748140510680,18.79181043,172.04,171.96,34.8]
[1748140510876,13.41047381,171.98,171.96,34.8]
[1748140512281,13.41047381,171.97,171.94,6.4336]
[1748140512482,13.41047381,171.97,171.95,34.8]
[1748140512981,13.41047381,171.97,171.96,34.8]
[1748140515691,18.79181043,172.04,171.96,34.8]
[1748140515892,26.0,172.05,171.96,48.21047381]
[1748140516096,13.41047381,172.01,171.96,48.21047381]
[1748140516909,13.41047381,172.01,171.96,34.8]
[1748140517100,13.41047381,172.01,171.96,48.21047381]
[1748140517490,13.41047381,172.0,171.97,257.02]
[1748140518101,13.41047381,172.01,171.97,257.02]
[1748140518402,26.0,172.05,171.97,257.02]
[1748140518609,13.41047381,172.01,171.97,39.82]
[1748140519521,161.7,172.07,171.98,1.5108]
[1748140519692,0.14216157,172.09,172.0,13.41047381]
[1748140519895,13.41047381,172.06,172.01,48.21047381]
[1748140520099,13.41047381,172.05,172.01,34.8]
[1748140520289,32.06012267,172.08,172.01,34.8]
[1748140520489,13.41047381,172.03,172.01,34.8]
[1748140521017,13.41047381,172.02,171.95,13.41047381]
[1748140521218,13.41047381,171.98,171.96,34.8]
[1748140521405,0.14216157,172.03,171.96,34.8]
[1748140521406,13.41047381,171.97,171.96,34.8]
[1748140522314,18.79181043,172.04,171.96,34.8]
[1748140522517,13.41047381,171.97,171.96,34.8]
[1748140524018,13.41047381,171.97,171.92,6.1653]
[1748140524227,0.14216157,172.03,171.96,34.8]
[1748140524534,13.41047381,171.97,171.96,34.8]
[1748140525528,13.41047381,171.97,171.92,6.1653]
[1748140525728,13.41047381,171.99,171.96,34.8]
[1748140525898,13.41047381,171.97,171.96,34.8]
[1748140527513,13.41047381,171.97,171.96,291.82]
[1748140528748,13.41047381,171.97,171.96,74.64]
[1748140529320,13.55263538,171.97,171.96,34.82]
[1748140529845,0.14216157,171.96,171.89,1.770655]
[1748140530031,13.41047381,171.92,171.9,34.82]
[1748140530744,13.41047381,171.92,171.91,34.82]
[1748140532850,26.0,171.9,171.89,0.138655]
[1748140533047,39.41047381,171.9,171.89,34.958655]
[1748140533230,13.41047381,171.9,171.89,34.958655]
[1748140537281,26.0,171.91,171.89,34.958655]
[1748140537466,13.41047381,171.9,171.89,34.958655]
[1748140537666,13.41047381,171.9,171.89,292.078655]
[1748140537998,26.0,171.91,171.89,292.078655]
[1748140538165,13.41047381,171.91,171.89,292.078655]
[1748140538670,13.41047381,171.92,171.89,74.798655]
[1748140539276,13.41047381,171.93,171.89,34.958655]
[1748140539480,18.79181043,171.98,171.89,34.958655]
[1748140539791,13.41047381,171.93,171.89,34.958655]
[1748140542782,0.14216157,171.96,171.89,34.958655]
[1748140542973,13.41047381,171.93,171.89,34.958655]
[1748140544497,0.14216157,171.96,171.89,34.958655]
[1748140544685,13.41047381,171.93,171.89,34.958655]
[1748140547125,13.41047381,171.92,171.89,34.958655]
[1748140547506,13.41047381,171.92,171.9,256.94]
[1748140549776,13.41047381,171.93,171.9,256.94]
[1748140550102,13.41047381,171.92,171.89,34.958655]
[1748140552693,18.79181043,171.96,171.89,0.138655]
[1748140552694,13.41047381,171.9,171.89,0.138655]
[1748140552898,13.41047381,171.9,171.89,34.958655]
[1748140557024,18.79181043,171.93,171.89,34.958655]
[1748140557238,18.79181043,171.97,171.89,48.36912881]
[1748140557401,13.41047381,171.94,171.89,48.36912881]
[1748140557603,13.41047381,171.94,171.9,256.96]
[1748140557804,13.41047381,171.94,171.9,39.66]
[1748140558115,13.41047381,171.97,171.92,13.41047381]
[1748140558306,13.41047381,171.96,171.93,34.82]
[1748140561729,13.41047381,171.95,171.93,34.82]
[1748140561942,13.41047381,171.94,171.89,0.138655]
[1748140562224,13.41047381,171.92,171.9,34.82]
[1748140562425,13.41047381,171.94,171.9,48.23047381]
[1748140562633,5.95731498,172.03,171.93,13.41047381]
[1748140562808,13.41047381,172.03,171.98,13.41047381]
[1748140563010,13.41047381,172.03,171.99,34.82]
[1748140563218,13.41047381,172.01,171.99,34.82]
[1748140563727,8.97500417,172.12,172.0,13.41047381]
[1748140563903,13.41047381,172.07,172.03,13.41047381]
[1748140564106,13.41047381,172.08,172.04,34.82]
[1748140564704,0.14216157,172.11,172.05,13.41047381]
[1748140564907,21.59642737,172.1,172.05,13.41047381]
[1748140565537,13.41047381,172.1,172.05,13.41047381]
[1748140565914,13.41047381,172.09,172.04,48.23047381]
[1748140566335,13.41047381,172.07,172.04,34.82]
[1748140567518,13.41047381,172.07,172.05,256.88]
[1748140568147,13.41047381,172.06,172.05,256.88]
[1748140568335,2.97009918,172.12,172.05,291.7]
[1748140568633,26.14216157,172.12,172.05,305.11047381]
[1748140568833,13.41047381,172.09,172.05,87.89047381]
[1748140569329,13.41047381,172.09,172.05,74.48]
[1748140570237,13.41047381,172.09,172.05,34.82]
[1748140571930,26.14216157,172.12,172.05,34.82]
[1748140572135,13.41047381,172.09,172.05,34.82]
[1748140575352,28.99704757,172.14,172.05,34.82]
[1748140575353,13.41047381,172.08,172.05,34.82]
[1748140575528,0.14216157,172.13,172.05,34.82]
[1748140575723,13.41047381,172.08,172.05,34.82]
[1748140577265,13.41047381,172.07,172.05,34.82]
[1748140577440,13.41047381,172.06,172.01,13.41047381]
[1748140577633,13.41047381,172.06,172.02,291.12]
[1748140578037,13.41047381,172.06,172.02,73.98]
[1748140578645,26.0,172.09,172.02,73.98]
[1748140578953,13.41047381,172.07,172.03,13.41047381]
[1748140579139,13.41047381,172.09,172.04,13.41047381]
[1748140580851,13.41047381,172.08,172.02,34.8]
[1748140581060,13.41047381,172.08,172.03,13.41047381]
[1748140581553,13.41047381,172.04,172.0,7.7319]
[1748140581739,13.41047381,172.02,172.0,7.7319]
[1748140582060,13.41047381,172.02,172.01,34.8]
[1748140583475,13.41047381,172.02,171.96,19.87217381]
[1748140583637,13.41047381,172.0,171.97,34.8]
[1748140584157,13.41047381,172.01,171.97,34.8]
[1748140584464,13.41047381,172.0,171.97,34.8]
[1748140584862,13.41047381,172.0,171.96,6.4617]
[1748140585053,18.79181043,172.05,171.98,34.8]
[1748140585250,13.41047381,172.0,171.98,34.8]
[1748140585753,13.41047381,171.99,171.96,6.4617]
[1748140586062,13.41047381,171.99,171.97,34.8]
[1748140586444,13.41047381,171.98,171.97,34.8]
[1748140587461,13.41047381,171.98,171.97,291.12]
[1748140587766,13.41047381,171.99,171.97,291.12]
[1748140589872,0.14216157,172.05,171.97,48.21047381]
[1748140590061,13.41047381,172.02,171.97,48.21047381]
[1748140590255,13.41047381,172.01,171.97,34.8]
[1748140590458,26.14216157,172.03,171.97,34.8]
[1748140590659,13.41047381,172.0,171.97,34.8]
[1748140590974,26.0,172.03,171.97,34.8]
[1748140591273,13.41047381,172.0,171.97,34.8]
[1748140593676,13.41047381,171.99,171.97,34.8]
[1748140593865,18.79181043,172.03,171.97,34.8]
[1748140594175,13.41047381,172.0,171.97,34.8]
[1748140595556,13.41047381,171.99,171.97,34.8]
[1748140595773,13.41047381,172.0,171.97,34.8]
[1748140597493,13.41047381,172.0,171.98,256.38]
[1748140597787,13.41047381,171.99,171.98,256.38]
[1748140598494,13.41047381,171.99,171.98,74.0]
[1748140600387,13.41047381,171.99,171.98,34.8]
[1748140607089,26.0,172.01,171.98,34.8]
[1748140607268,13.41047381,171.99,171.98,34.8]
[1748140607595,13.41047381,171.99,171.98,290.96]
[1748140609594,13.41047381,171.99,171.98,73.74]
[1748140609791,13.41047381,172.0,171.98,73.74]
[1748140611785,13.41047381,172.0,171.98,34.8]
[1748140612288,13.41047381,171.99,171.98,34.8]
[1748140615275,13.41047381,171.99,171.92,19.87217381]
[1748140615594,13.41047381,171.98,171.93,34.82]
[1748140615797,26.0,172.01,171.94,13.41047381]
[1748140615997,26.0,172.01,171.95,13.41047381]
[1748140616202,13.41047381,172.0,171.95,13.41047381]
[1748140617568,26.0,171.99,171.96,256.16]
[1748140617793,13.41047381,171.99,171.97,34.82]
[1748140620295,13.41047381,171.98,171.96,38.94]
[1748140620476,13.41047381,171.97,171.93,82.5]
[1748140620680,13.41047381,171.96,171.94,34.82]
[1748140620882,13.41047381,171.96,171.93,82.5]
[1748140620883,13.41047381,171.95,171.89,0.138655]
[1748140621186,13.41047381,171.92,171.9,34.82]
[1748140621774,26.0,171.96,171.89,0.138655]
[1748140621775,13.41047381,171.91,171.89,0.138655]
[1748140621971,0.14216157,171.95,171.89,0.138655]
[1748140622175,13.41047381,171.9,171.89,0.138655]
[1748140622400,13.41047381,171.9,171.89,34.958655]
[1748140622779,13.41047381,171.92,171.89,34.958655]
[1748140623685,13.41047381,171.93,171.89,34.958655]
[1748140623891,26.0,171.95,171.89,34.958655]
[1748140623892,13.41047381,171.94,171.89,48.36912881]
[1748140624077,13.41047381,171.93,171.89,34.958655]
[1748140627404,13.41047381,171.92,171.89,34.958655]
[1748140627613,13.41047381,171.92,171.9,256.2]
[1748140628114,26.0,171.95,171.9,256.2]
[1748140628287,13.41047381,171.92,171.9,256.2]
[1748140629209,13.41047381,171.91,171.9,38.94]
[1748140629396,13.41047381,171.91,171.9,34.82]
[1748140632013,13.55263538,171.91,171.9,34.82]
[1748140632313,39.55263538,171.91,171.9,34.82]
[1748140637623,39.55263538,171.91,171.9,290.94]
[1748140640536,26.14216157,171.91,171.9,290.94]
[1748140641023,13.41047381,171.95,171.9,93.23647381]
[1748140641224,13.41047381,171.96,171.91,13.41047381]
[1748140641826,13.41047381,171.96,171.9,41.006]
[1748140642009,13.41047381,171.95,171.9,54.41647381]
[1748140642509,13.41047381,171.94,171.9,41.006]
[1748140643327,13.41047381,171.93,171.9,41.006]
[1748140643897,13.41047381,171.92,171.9,41.006]
[1748140644102,13.41047381,171.93,171.9,41.006]
[1748140644321,13.41047381,171.94,171.9,41.006]
[1748140645725,13.41047381,171.92,171.9,34.82]
[1748140647324,44.64964886,171.97,171.89,0.138655]
[1748140647325,13.41047381,171.91,171.89,0.138655]
[1748140647524,13.41047381,171.9,171.89,0.138655]
[1748140647711,13.41047381,171.9,171.89,256.278655]
[1748140648212,13.41047381,171.9,171.89,291.098655]
[1748140650224,13.41047381,171.9,171.89,0.138655]
[1748140650424,13.41047381,171.9,171.89,34.958655]
[1748140657536,13.41047381,171.9,171.89,291.098655]
[1748140661644,13.41047381,171.9,171.89,34.958655]
[1748140663782,13.41047381,171.92,171.89,34.958655]
[1748140663980,39.41047381,171.93,171.89,34.958655]
[1748140665081,13.41047381,171.92,171.89,34.958655]
[1748140667064,13.41047381,171.94,171.9,13.41047381]
[1748140667380,26.14216157,171.97,171.91,13.41047381]
[1748140667579,13.41047381,171.96,171.92,256.14]
[1748140667877,13.41047381,171.94,171.93,34.82]
[1748140669286,13.55263538,171.94,171.93,34.82]
[1748140670281,39.55263538,171.94,171.93,34.82]
[1748140670468,58.20228424,171.94,171.93,34.82]
[1748140671492,32.20228424,171.94,171.93,34.82]
[1748140677495,32.20228424,171.94,171.93,290.96]
[1748140679604,32.20228424,171.94,171.93,73.64]
[1748140679901,8.18595356,171.96,171.93,34.82]
[1748140680080,13.41047381,171.94,171.93,34.82]
[1748140680277,39.55263538,171.94,171.93,34.82]
[1748140680479,13.55263538,171.94,171.93,34.82]
[1748140680797,39.55263538,171.94,171.93,34.82]
[1748140681674,58.20228424,171.94,171.93,34.82]
[1748140682381,26.0,171.91,171.89,0.138655]
[1748140682597,13.41047381,171.9,171.89,0.138655]
[1748140682790,13.41047381,171.9,171.89,34.958655]
[1748140683090,26.0,171.87,171.8,7.9865]
[1748140683297,13.41047381,171.82,171.8,7.9865]
[1748140683876,13.3852167,171.82,171.8,7.9865]
[1748140684379,13.3852167,171.81,171.8,7.9865]
[1748140684708,26.0,171.83,171.8,34.82]
[1748140684903,13.3852167,171.81,171.8,34.82]
[1748140686224,13.52737827,171.81,171.8,34.82]
[1748140686387,13.52737827,171.81,171.8,34.84]
[1748140686589,0.14216157,171.81,171.8,34.84]
[1748140686787,13.52737827,171.81,171.8,34.84]
[1748140687616,13.52737827,171.81,171.8,291.04]
[1748140687800,13.3852167,171.81,171.8,291.04]
[1748140689026,13.3852167,171.81,171.8,73.66]
[1748140689633,13.3852167,171.81,171.8,34.84]
[1748140692799,13.52737827,171.81,171.8,34.84]
[1748140693295,13.52737827,171.81,171.76,6.4799]
[1748140693517,0.14216157,171.81,171.77,34.84]
[1748140693703,13.3852167,171.78,171.77,34.84]
[1748140694924,26.0,171.86,171.77,34.84]
[1748140695112,26.0,171.82,171.77,34.84]
[1748140695295,13.3852167,171.79,171.77,34.84]
[1748140697346,13.3852167,171.78,171.77,34.84]
[1748140697550,13.3852167,171.78,171.77,291.18]
[1748140698034,13.3852167,171.79,171.77,291.18]
[1748140698351,13.3852167,171.8,171.77,73.76]
[1748140699453,13.3852167,171.79,171.77,73.76]
[1748140700454,13.3852167,171.79,171.77,34.84]
[1748140700663,135.7,171.89,171.77,34.84]
[1748140700961,13.3852167,171.81,171.77,117.34]
[1748140701137,13.3852167,171.78,171.76,6.4799]
[1748140701324,13.3852167,171.77,171.76,6.4799]
[1748140701646,13.3852167,171.77,171.76,41.3199]
[1748140703550,13.3852167,171.77,171.76,34.84]
[1748140703935,13.3852167,171.77,171.72,6.5813]
[1748140704246,13.3852167,171.75,171.73,34.84]
[1748140704746,13.3852167,171.75,171.72,6.5813]
[1748140704938,13.3852167,171.75,171.74,34.84]
[1748140705136,13.3852167,171.75,171.71,1.5287]
[1748140705443,13.3852167,171.74,171.72,34.84]
[1748140705642,13.3852167,171.75,171.72,34.84]
[1748140706041,13.3852167,171.74,171.72,34.84]
[1748140707651,13.3852167,171.74,171.73,256.36]
[1748140709353,13.3852167,171.74,171.73,38.92]
[1748140711256,13.3852167,171.74,171.72,34.84]
[1748140712858,13.3852167,171.73,171.71,1.5287]
[1748140713043,13.3852167,171.73,171.72,34.86]
[1748140714155,39.3852167,171.73,171.68,6.0453]
[1748140714357,13.3852167,171.7,171.69,34.86]
[1748140714540,13.3852167,171.78,171.69,42.24770396]
[1748140714730,13.3852167,171.76,171.68,6.0453]
[1748140715139,13.3852167,171.76,171.69,34.86]
[1748140715345,13.3852167,171.76,171.7,34.86]
[1748140716258,1.5903,171.83,171.7,34.86]
[1748140716445,13.3852167,171.78,171.7,34.86]
[1748140716766,13.3852167,171.77,171.7,34.86]
[1748140717459,13.3852167,171.77,171.71,217.5]
[1748140717647,13.3852167,171.77,171.71,256.42]
[1748140718131,26.0,171.79,171.71,256.42]
[1748140718332,13.3852167,171.78,171.71,38.92]
[1748140718534,13.3852167,171.81,171.72,1.6069]
[1748140719163,13.3852167,171.8,171.72,1.6069]
[1748140721443,13.3852167,171.73,171.68,90.1522]
[1748140721768,13.3852167,171.72,171.69,34.86]
[1748140721937,13.3852167,171.73,171.69,34.86]
[1748140722550,13.3852167,171.72,171.69,34.86]
[1748140726875,13.3852167,171.73,171.69,34.86]
[1748140727172,13.3852167,171.74,171.69,34.86]
[1748140727471,13.3852167,171.74,171.7,256.44]
[1748140727851,13.3852167,171.74,171.7,38.92]
[1748140730180,13.3852167,171.73,171.7,38.92]
[1748140730490,13.3852167,171.73,171.69,34.86]
[1748140731470,13.3852167,171.73,171.68,7.6522]
[1748140731666,13.3852167,171.71,171.69,34.86]
[1748140731987,13.3852167,171.72,171.69,34.86]
[1748140733275,13.3852167,171.72,171.7,34.86]
[1748140733662,13.3852167,171.71,171.63,90.1903]
[1748140733863,0.14216157,171.74,171.64,34.86]
[1748140733864,13.3852167,171.7,171.64,34.86]
[1748140737483,13.3852167,171.7,171.65,256.38]
[1748140739572,13.3852167,171.69,171.64,82.5]
[1748140739780,13.3852167,171.69,171.65,34.86]
[1748140741582,13.3852167,171.7,171.65,34.86]
[1748140743574,13.3852167,171.71,171.64,82.5]
[1748140743771,13.3852167,171.71,171.65,34.86]
[1748140744367,13.3852167,171.71,171.64,82.5]
[1748140744569,26.0,171.62,171.53,8.2007]
[1748140744771,13.3852167,171.6,171.53,8.2007]
[1748140744988,13.3852167,171.58,171.54,34.86]
[1748140745388,13.3852167,171.57,171.54,34.86]
[1748140745597,13.3852167,171.56,171.54,34.86]
[1748140745777,13.3852167,171.57,171.54,34.86]
[1748140746292,13.3852167,171.56,171.55,34.86]
[1748140746468,48.81241169,171.61,171.55,34.86]
[1748140746790,13.3852167,171.56,171.49,7.8712]
[1748140746968,13.3852167,171.56,171.5,34.86]
[1748140747491,13.3852167,171.56,171.51,256.46]
[1748140747670,13.3852167,171.55,171.52,34.86]
[1748140748391,13.3852167,171.54,171.49,7.8712]
[1748140748682,26.0,171.58,171.49,7.8712]